bitfinex-derivatives/quotes_BTCF0:USTF0_20250406
["timestamp","ask_amount","ask_price","bid_price","bid_amount"]
[1743946172696,1.12842163,82571.0,82570.0,0.1]
[1743946173099,1.12342163,82571.0,82570.0,0.1]
[1743946173398,1.12842163,82571.0,82570.0,0.1]
[1743946174107,1.03842163,82571.0,82570.0,0.1]
[1743946174307,1.03842163,82571.0,82570.0,0.1331]
[1743946174502,1.04342163,82571.0,82570.0,0.1331]
[1743946175203,0.98450866,82571.0,82570.0,0.1331]
[1743946175805,0.98450866,82571.0,82570.0,0.1649]
[1743946176015,0.97450866,82571.0,82570.0,0.1]
[1743946176309,0.97650866,82571.0,82570.0,0.1]
[1743946176511,1.20650866,82571.0,82570.0,0.1]
[1743946176810,1.20550866,82571.0,82570.0,0.1]
[1743946177011,0.97550866,82571.0,82570.0,0.1]
[1743946177206,0.61470866,82571.0,82570.0,0.1]
[1743946177401,1.24550866,82571.0,82570.0,0.1]
[1743946177601,0.97550866,82571.0,82570.0,0.1]
[1743946177913,0.97650866,82571.0,82570.0,0.1]
[1743946178099,0.61570866,82571.0,82570.0,0.1]
[1743946178304,0.61570866,82571.0,82570.0,0.132]
[1743946178897,0.61270866,82571.0,82570.0,0.132]
[1743946179102,0.4355962,82571.0,82570.0,0.132]
[1743946180112,0.4325962,82571.0,82570.0,0.132]
[1743946180415,0.4355962,82571.0,82570.0,0.132]
[1743946180906,0.4285962,82571.0,82570.0,0.132]
[1743946181115,0.4345962,82571.0,82570.0,0.132]
[1743946181913,0.4335962,82571.0,82570.0,0.1632]
[1743946184814,0.4325962,82571.0,82570.0,0.1632]
[1743946186509,0.4335962,82571.0,82570.0,0.1632]
[1743946186904,0.4305962,82571.0,82570.0,0.1632]
[1743946187099,0.4335962,82571.0,82570.0,0.1632]
[1743946188304,0.6935962,82571.0,82570.0,0.1632]
[1743946189503,0.6935962,82571.0,82570.0,0.132]
[1743946191511,0.4335962,82571.0,82570.0,0.132]
[1743946191818,0.7135962,82571.0,82570.0,0.132]
[1743946192014,0.4335962,82571.0,82570.0,0.132]
[1743946192210,0.88470866,82571.0,82570.0,0.132]
[1743946192416,0.86470866,82571.0,82570.0,0.132]
[1743946193210,0.90470866,82571.0,82570.0,0.132]
[1743946193411,0.61470866,82571.0,82570.0,0.132]
[1743946193611,0.61470866,82571.0,82570.0,0.1632]
[1743946196018,0.61170866,82571.0,82570.0,0.1632]
[1743946196219,0.4335962,82571.0,82570.0,0.1632]
[1743946196515,0.4315962,82571.0,82570.0,0.1632]
[1743946196719,0.4325962,82571.0,82570.0,0.1632]
[1743946196909,0.4325962,82571.0,82570.0,0.18037737]
[1743946197315,0.4345962,82571.0,82570.0,0.18037737]
[1743946198020,0.4315962,82571.0,82570.0,0.18037737]
[1743946198215,0.4335962,82571.0,82570.0,0.18037737]
[1743946199122,0.4305962,82571.0,82570.0,0.18037737]
[1743946199419,0.4335962,82571.0,82570.0,0.18037737]
[1743946199721,0.4305962,82571.0,82570.0,0.18037737]
[1743946199919,0.4335962,82571.0,82570.0,0.18037737]
[1743946201121,0.6735962,82571.0,82570.0,0.18037737]
[1743946201318,0.6735962,82571.0,82570.0,0.14917737]
[1743946201625,0.6835962,82571.0,82570.0,0.14917737]
[1743946202827,0.6835962,82571.0,82570.0,0.11717737]
[1743946203627,0.6815962,82571.0,82570.0,0.11717737]
[1743946203826,0.6845962,82571.0,82570.0,0.11717737]
[1743946204028,0.6865962,82571.0,82570.0,0.11717737]
[1743946204418,0.4335962,82571.0,82570.0,0.11717737]
[1743946204614,0.4903162,82571.0,82570.0,0.14967737]
[1743946205121,0.4365962,82571.0,82570.0,0.14967737]
[1743946205623,0.4365962,82571.0,82570.0,0.18277737]
[1743946206317,0.42653599,82571.0,82570.0,0.18277737]
[1743946206519,0.43053599,82571.0,82570.0,0.18277737]
[1743946207124,0.42253599,82571.0,82570.0,0.18277737]
[1743946207314,0.42853599,82571.0,82570.0,0.18277737]
[1743946207712,0.36583599,82571.0,82570.0,0.18277737]
[1743946207918,0.00636,82571.0,82570.0,0.41759457]
[1743946208129,0.0908162,82571.0,82570.0,0.47783103]
[1743946208423,0.0848152,82572.0,82571.0,0.1272217]
[1743946208614,0.0848152,82572.0,82571.0,0.1908217]
[1743946208818,0.0848152,82572.0,82571.0,0.16624406]
[1743946209220,0.0848152,82572.0,82571.0,0.18342143]
[1743946209427,0.0848152,82572.0,82571.0,1.68342143]
[1743946209726,0.0878152,82572.0,82571.0,1.68342143]
[1743946209911,0.0918152,82572.0,82571.0,1.68342143]
[1743946210115,0.0918152,82572.0,82571.0,1.68406143]
[1743946211230,0.3718152,82572.0,82571.0,1.68406143]
[1743946211422,0.0926552,82572.0,82571.0,1.62382497]
[1743946211615,0.0918152,82572.0,82571.0,1.62382497]
[1743946212626,0.0918152,82572.0,82571.0,1.84175549]
[1743946215129,0.3618152,82572.0,82571.0,1.84175549]
[1743946215330,0.0918152,82572.0,82571.0,1.84175549]
[1743946216133,0.0918152,82572.0,82571.0,1.62382497]
[1743946224642,0.1250152,82572.0,82571.0,1.62382497]
[1743946226845,0.1570152,82572.0,82571.0,1.62382497]
[1743946227948,0.1570152,82572.0,82571.0,1.59202497]
[1743946229347,0.1570152,82572.0,82571.0,1.56022497]
[1743946229839,0.1570152,82572.0,82571.0,1.59242497]
[1743946230549,0.4170152,82572.0,82571.0,1.59242497]
[1743946230747,0.1578552,82572.0,82571.0,1.59242497]
[1743946230949,0.1570152,82572.0,82571.0,1.59242497]
[1743946231244,0.0722,82572.0,82571.0,1.59242497]
[1743946231546,0.0402,82572.0,82571.0,1.59242497]
[1743946231747,0.0402,82572.0,82571.0,1.62572497]
[1743946231944,0.007,82572.0,82571.0,1.68587131]
[1743946232745,0.10631724,82575.0,82574.0,0.0848131]
[1743946232947,0.10631724,82575.0,82574.0,0.19935944]
[1743946233447,0.10631724,82575.0,82574.0,0.21653681]
[1743946233652,0.14454087,82579.0,82578.0,0.0424043]
[1743946233852,0.14542087,82579.0,82578.0,0.4886933]
[1743946234051,0.14542087,82579.0,82578.0,0.56601701]
[1743946234851,0.14454087,82579.0,82578.0,0.59911701]
[1743946235048,0.14538087,82579.0,82578.0,0.59911701]
[1743946235347,0.14954087,82579.0,82578.0,0.59911701]
[1743946235853,0.14348232,82579.0,82578.0,0.59911701]
[1743946236837,0.14648232,82579.0,82578.0,0.59911701]
[1743946237454,0.008,82579.0,82578.0,0.59911701]
[1743946237749,0.006,82579.0,82578.0,0.59911701]
[1743946238545,0.006,82579.0,82578.0,0.7202139]
[1743946238952,0.006,82579.0,82578.0,2.2202139]
[1743946241646,0.006,82579.0,82578.0,2.2738939]
[1743946242453,0.005,82579.0,82578.0,2.2738939]
[1743946242950,0.005,82579.0,82578.0,2.4238939]
[1743946243154,0.00018153,82595.0,82594.0,0.0847926]
[1743946243354,0.00110153,82595.0,82594.0,0.4462326]
[1743946243561,0.00018153,82595.0,82594.0,0.4462326]
[1743946243756,0.00018153,82595.0,82594.0,2.0111326]
[1743946244145,0.00018153,82595.0,82594.0,2.07122253]
[1743946244345,0.00018153,82595.0,82594.0,2.20947333]
[1743946244545,0.00018153,82595.0,82594.0,2.24167333]
[1743946244752,0.00418153,82595.0,82594.0,2.24167333]
[1743946245349,0.00818153,82595.0,82594.0,2.24167333]
[1743946246162,0.00718153,82595.0,82594.0,2.24167333]
[1743946246761,0.09197303,82595.0,82594.0,1.96340997]
[1743946247056,0.35197303,82595.0,82594.0,0.46340997]
[1743946247257,0.35281303,82595.0,82594.0,0.46340997]
[1743946247454,0.37281303,82595.0,82594.0,1.96340997]
[1743946247760,0.07098153,82595.0,82594.0,1.96340997]
[1743946248442,0.31098153,82595.0,82594.0,1.96340997]
[1743946248749,0.33098153,82595.0,82594.0,1.96340997]
[1743946249056,0.31098153,82595.0,82594.0,1.96340997]
[1743946249253,0.07098153,82595.0,82594.0,1.96340997]
[1743946249554,0.15577303,82595.0,82594.0,1.96340997]
[1743946249752,0.41577303,82595.0,82594.0,1.96340997]
[1743946250654,0.41577303,82595.0,82594.0,0.37861737]
[1743946250857,0.41661303,82595.0,82594.0,0.37861737]
[1743946251071,0.66661303,82595.0,82594.0,0.37861737]
[1743946251359,0.41661303,82595.0,82594.0,1.87861737]
[1743946251653,0.4105549,82595.0,82594.0,1.96340997]
[1743946258754,0.4105549,82595.0,82594.0,1.51781737]
[1743946259357,0.0847997,82587.0,82586.0,0.00026164]
[1743946259559,0.0848069,82580.0,82579.0,0.70538307]
[1743946259858,0.3148069,82580.0,82579.0,2.20538307]
[1743946260065,0.3148069,82580.0,82579.0,2.12129897]
[1743946260268,0.5548069,82580.0,82579.0,2.07889587]
[1743946260564,0.55584691,82580.0,82579.0,2.16370387]
[1743946260763,0.31584691,82580.0,82579.0,2.16470387]
[1743946261268,0.23104001,82580.0,82579.0,2.16470387]
[1743946261463,0.23,82580.0,82579.0,2.16470387]
[1743946262169,0.23,82580.0,82579.0,1.947328]
[1743946262357,0.3148069,82580.0,82579.0,1.948328]
[1743946262558,0.3148069,82580.0,82579.0,1.947328]
[1743946262767,0.2606,82580.0,82579.0,1.947328]
[1743946263262,0.01270263,82580.0,82579.0,1.947328]
[1743946263661,0.01270263,82580.0,82579.0,2.00740829]
[1743946264666,0.01270263,82580.0,82579.0,2.03830829]
[1743946264873,0.0423975,82592.0,82591.0,0.0847956]
[1743946265074,0.0332,82593.0,82592.0,0.0847946]
[1743946265372,0.0332,82593.0,82592.0,0.1156946]
[1743946265565,0.0332,82593.0,82592.0,1.6156946]
[1743946265764,0.1179936,82593.0,82592.0,1.5847946]
[1743946266168,0.1487936,82593.0,82592.0,1.5847946]
[1743946266356,0.1517936,82593.0,82592.0,1.5847946]
[1743946266557,0.1827936,82593.0,82592.0,1.5847946]
[1743946266963,0.098,82593.0,82592.0,1.6170946]
[1743946267165,0.0648,82593.0,82592.0,1.6170946]
[1743946267563,0.003,82593.0,82592.0,1.6482946]
[1743946267763,0.003,82593.0,82592.0,1.70843704]
[1743946267970,0.031,82598.0,82597.0,0.0847895]
[1743946268171,0.031,82598.0,82597.0,0.50573194]
[1743946268871,0.031,82598.0,82597.0,2.03593194]
[1743946269175,0.038,82598.0,82597.0,2.03593194]
[1743946269470,0.007,82598.0,82597.0,2.15700097]
[1743946270165,0.0317,82608.0,82607.0,0.0847792]
[1743946270371,0.03274001,82608.0,82607.0,0.50636164]
[1743946270569,0.00104001,82608.0,82607.0,0.50636164]
[1743946270969,0.00104001,82608.0,82607.0,2.09896164]
[1743946271269,0.18111246,82621.0,82620.0,0.0847659]
[1743946271463,0.18215247,82621.0,82620.0,0.0854059]
[1743946271665,0.21385247,82621.0,82620.0,0.10232941]
[1743946271967,0.55861727,82621.0,82620.0,0.01756351]
[1743946272169,0.29861727,82621.0,82620.0,0.10232941]
[1743946272473,0.56861727,82621.0,82620.0,0.10232941]
[1743946272670,0.56861727,82621.0,82620.0,0.11898318]
[1743946272969,0.55861727,82621.0,82620.0,0.11898318]
[1743946273370,0.57161727,82621.0,82620.0,0.11897819]
[1743946273578,0.30161727,82621.0,82620.0,0.11897819]
[1743946273757,0.53161727,82621.0,82620.0,0.12802276]
[1743946273959,0.30161727,82621.0,82620.0,0.12802276]
[1743946274575,0.30361727,82621.0,82620.0,0.12802276]
[1743946275273,0.21885247,82621.0,82620.0,0.12802276]
[1743946275474,0.03774001,82621.0,82620.0,0.12802276]
[1743946275674,0.0367,82621.0,82620.0,0.12802276]
[1743946275875,0.1214648,82621.0,82620.0,0.15912276]
[1743946276073,0.12250481,82621.0,82620.0,0.15912276]
[1743946276675,0.36250481,82621.0,82620.0,0.15912276]
[1743946276872,0.12250481,82621.0,82620.0,0.15925785]
[1743946277177,0.03774001,82621.0,82620.0,0.15925785]
[1743946277679,0.36250481,82621.0,82620.0,0.15925785]
[1743946277979,0.12250481,82621.0,82620.0,0.15925785]
[1743946278168,0.36250481,82621.0,82620.0,0.15925785]
[1743946278776,0.12250481,82621.0,82620.0,0.15925785]
[1743946278972,0.39250481,82621.0,82620.0,0.15925785]
[1743946280570,0.39250481,82621.0,82620.0,0.14247398]
[1743946281380,0.39250481,82621.0,82620.0,0.11137398]
[1743946282282,0.30774001,82621.0,82620.0,0.11137398]
[1743946282475,0.12250481,82621.0,82620.0,0.11137398]
[1743946282666,0.03774001,82621.0,82620.0,0.14437398]
[1743946282874,0.005,82621.0,82620.0,0.14437398]
[1743946284078,0.00604001,82621.0,82620.0,0.14437398]
[1743946284584,0.09080481,82621.0,82620.0,0.14437398]
[1743946284882,0.39530481,82621.0,82620.0,0.14437398]
[1743946285083,0.17530481,82621.0,82620.0,0.14437398]
[1743946286881,0.09054001,82621.0,82620.0,0.14437398]
[1743946287080,0.005,82621.0,82620.0,0.14437398]
[1743946287884,0.3397648,82621.0,82620.0,1.64437398]
[1743946288179,0.6297648,82621.0,82620.0,0.14437398]
[1743946288484,0.34080481,82621.0,82620.0,0.11137398]
[1743946288672,0.34080481,82621.0,82620.0,0.02660808]
[1743946289083,0.58080481,82621.0,82620.0,0.02596808]
[1743946290684,0.58080481,82621.0,82620.0,0.04260562]
[1743946291486,0.58080481,82621.0,82620.0,0.12737152]
[1743946291678,0.58080481,82621.0,82620.0,0.11073398]
[1743946291984,0.94160481,82621.0,82620.0,0.11073398]
[1743946297788,0.94160481,82621.0,82620.0,0.02596808]
[1743946298787,0.94160481,82621.0,82620.0,0.04264483]
[1743946298990,0.70160481,82621.0,82620.0,0.04264483]
[1743946299186,0.70160481,82621.0,82620.0,0.12741073]
[1743946299889,0.70160481,82621.0,82620.0,0.04264483]
[1743946300681,0.70160481,82621.0,82620.0,0.02596808]
[1743946300882,0.70160481,82621.0,82620.0,0.11073398]
[1743946301287,0.34080481,82621.0,82620.0,0.11073398]
[1743946301491,0.34080481,82621.0,82620.0,0.17183398]
[1743946301896,0.3317205,82621.0,82620.0,0.17183398]
[1743946302196,0.00104001,82621.0,82620.0,1.67183398]
[1743946302398,0.0004,82624.0,82623.0,0.0847628]
[1743946302699,0.0004,82624.0,82623.0,0.46248631]
[1743946303301,0.0004,82624.0,82623.0,0.52266667]
[1743946303701,0.0024,82624.0,82623.0,0.52266667]
[1743946305194,0.0024,82624.0,82623.0,0.52330667]
[1743946305696,0.0024,82624.0,82623.0,0.67330667]
[1743946306195,0.0024,82624.0,82623.0,0.79433761]
[1743946306396,0.0004,82624.0,82623.0,0.79433761]
[1743946306904,0.0004,82624.0,82623.0,0.84797761]
[1743946307109,0.0004,82624.0,82623.0,0.52330667]
[1743946307607,0.0643,82624.0,82623.0,0.52330667]
[1743946307902,0.0643,82624.0,82623.0,2.08790667]
[1743946310008,0.0643,82624.0,82623.0,2.30534656]
[1743946310896,0.0004,82624.0,82623.0,2.30534656]
[1743946312005,0.0305,82627.0,82623.0,2.30534656]
[1743946312211,0.26181657,82627.0,82626.0,0.0847597]
[1743946312413,0.02181657,82627.0,82626.0,0.0847597]
[1743946312907,0.02181657,82627.0,82626.0,0.10168321]
[1743946314311,0.10657527,82627.0,82626.0,1.60168321]
[1743946314513,0.02181657,82627.0,82626.0,1.60168321]
[1743946314712,0.10657527,82627.0,82626.0,1.60168321]
[1743946315019,0.37657527,82627.0,82626.0,1.60168321]
[1743946315207,0.37657527,82627.0,82626.0,1.60232321]
[1743946315606,0.37657527,82627.0,82626.0,1.63452321]
[1743946316807,0.00018164,82629.0,82628.0,0.0847577]
[1743946317113,0.00018164,82629.0,82628.0,0.0853977]
[1743946317616,0.00018164,82629.0,82628.0,0.16542121]
[1743946317808,0.00018164,82629.0,82628.0,0.22553168]
[1743946318002,0.00018164,82629.0,82628.0,0.58633168]
[1743946319210,0.00018164,82629.0,82628.0,2.08633168]
[1743946319511,0.00018164,82629.0,82628.0,2.02622121]
[1743946321520,0.00018164,82629.0,82628.0,2.08632148]
[1743946322305,0.00018164,82629.0,82628.0,1.99452121]
[1743946323420,0.00018164,82629.0,82628.0,1.9775977]
[1743946324105,0.00018164,82629.0,82628.0,2.03769584]
[1743946324921,0.00018164,82629.0,82628.0,2.15871945]
[1743946328109,0.00018164,82629.0,82628.0,2.37615934]
[1743946328720,4e-08,82629.0,82628.0,2.37615934]
[1743946328924,4e-08,82629.0,82628.0,2.52615934]
[1743946329124,4e-08,82629.0,82628.0,2.72725934]
[1743946329715,4e-08,82629.0,82628.0,2.92725934]
[1743946329916,4e-08,82629.0,82628.0,2.72725934]
[1743946330219,4e-08,82629.0,82628.0,2.91725934]
[1743946330426,4e-08,82629.0,82628.0,2.93845934]
[1743946330924,4e-08,82629.0,82628.0,2.94145934]
[1743946331125,0.14455845,82649.0,82648.0,0.0847372]
[1743946331328,0.14559846,82649.0,82648.0,0.92007534]
[1743946331919,0.14559846,82649.0,82648.0,1.10559895]
[1743946332112,0.00104001,82649.0,82648.0,1.10559895]
[1743946332319,0.0646,82653.0,82652.0,0.0847331]
[1743946333122,0.0646,82653.0,82652.0,1.5847331]
[1743946335035,0.0646,82653.0,82652.0,1.5853731]
[1743946336423,0.0646,82653.0,82652.0,1.50064]
[1743946336631,0.0646,82653.0,82652.0,1.5853731]
[1743946336826,0.0646,82653.0,82652.0,0.0853731]
[1743946337023,0.0846,82653.0,82652.0,0.0853731]
[1743946337527,0.0846,82653.0,82652.0,1.5853731]
[1743946338120,0.0646,82653.0,82652.0,1.5853731]
[1743946339232,0.149332,82653.0,82652.0,1.5853731]
[1743946341228,0.149332,82653.0,82652.0,0.00064]
[1743946341229,0.399332,82653.0,82652.0,0.00064]
[1743946341434,0.68037201,82653.0,82652.0,0.00064]
[1743946341631,0.0847443,82641.0,82640.0,0.00026151]
[1743946341936,0.3647443,82641.0,82640.0,1.50018151]
[1743946342134,0.6147443,82641.0,82640.0,1.58492691]
[1743946342336,0.3647443,82641.0,82640.0,1.50018151]
[1743946342532,1.18188431,82641.0,82640.0,0.00018151]
[1743946342732,0.0847464,82639.0,82638.0,0.2172327]
[1743946342930,0.7447464,82639.0,82638.0,0.0674527]
[1743946343233,0.0847607,82625.0,82624.0,0.23444061]
[1743946343431,0.0847607,82625.0,82614.0,0.0847712]
[1743946343432,0.084769,82617.0,82593.0,0.0316]
[1743946343638,0.0847864,82600.0,82599.0,2.36746586]
[1743946343931,0.3547864,82600.0,82599.0,2.36746586]
[1743946344337,0.3547864,82600.0,82599.0,1.86140533]
[1743946344828,0.3547864,82600.0,82599.0,1.96281583]
[1743946345232,0.3547864,82600.0,82599.0,1.99711583]
[1743946345438,0.27,82600.0,82599.0,2.08189983]
[1743946345632,0.00018151,82608.0,82607.0,0.0847792]
[1743946345839,0.00142152,82608.0,82607.0,0.0847792]
[1743946346039,0.00018151,82608.0,82607.0,0.1150792]
[1743946346235,0.00018151,82608.0,82607.0,0.1317058]
[1743946346435,0.0316,82614.0,82613.0,0.0847731]
[1743946346639,0.3016,82614.0,82613.0,1.9455731]
[1743946346939,0.356372,82614.0,82613.0,1.9455731]
[1743946347332,0.386372,82614.0,82613.0,1.9455731]
[1743946347640,0.3016,82614.0,82613.0,1.9475731]
[1743946347852,0.386372,82614.0,82613.0,1.9475731]
[1743946348837,0.27,82614.0,82613.0,1.9475731]
[1743946349038,0.0423836,82619.0,82618.0,0.0847669]
[1743946349237,0.14455845,82621.0,82620.0,0.0847659]
[1743946349543,0.14455845,82621.0,82620.0,0.4455659]
[1743946349734,0.37455845,82621.0,82620.0,1.9455659]
[1743946349929,0.14455845,82621.0,82620.0,1.9769659]
[1743946350938,0.39455845,82621.0,82620.0,1.9769659]
[1743946351140,0.14455845,82621.0,82620.0,1.9769659]
[1743946351339,0.00018151,82622.0,82621.0,0.0847648]
[1743946351740,0.00018151,82622.0,82621.0,0.1495648]
[1743946353144,0.22930745,82637.0,82635.0,0.0847495]
[1743946353441,0.39058745,82637.0,82636.0,0.1168495]
[1743946354446,0.00328,82637.0,82636.0,0.1168495]
[1743946354743,0.002,82637.0,82636.0,0.1499495]
[1743946354930,0.00324001,82637.0,82636.0,0.1499495]
[1743946355134,0.14455845,82641.0,82640.0,0.0847454]
[1743946355444,0.14455845,82641.0,82640.0,1.5847454]
[1743946356033,0.14455845,82641.0,82640.0,1.6493454]
[1743946356434,0.0004,82660.0,82640.0,1.88924604]
[1743946356645,0.0004,82660.0,82659.0,0.0847259]
[1743946356844,0.00164001,82660.0,82659.0,0.0847259]
[1743946357146,0.00164001,82660.0,82659.0,0.1156259]
[1743946357331,0.00164001,82660.0,82659.0,1.6156259]
[1743946357535,0.0004,82660.0,82659.0,1.6156259]
[1743946357737,0.0024,82660.0,82659.0,1.6156259]
[1743946357930,0.0024,82660.0,82659.0,1.59378116]
[1743946357931,0.2424,82660.0,82659.0,1.59378116]
[1743946358137,0.2524,82660.0,82659.0,1.59378116]
[1743946358445,0.3371249,82660.0,82659.0,1.50905526]
[1743946358738,0.3371249,82660.0,82659.0,0.09378116]
[1743946359744,0.33836491,82660.0,82659.0,0.09378116]
[1743946359940,0.33836491,82660.0,82659.0,0.12548116]
[1743946361238,0.61836491,82660.0,82659.0,0.00905526]
[1743946361541,0.0847331,82652.0,82651.0,0.00018151]
[1743946361739,0.67677311,82652.0,82651.0,0.00018151]
[1743946362052,0.31597311,82652.0,82651.0,0.00018151]
[1743946362344,0.31813311,82652.0,82651.0,0.00018151]
[1743946362545,0.38213311,82652.0,82651.0,0.00018151]
[1743946362938,0.38213311,82652.0,82651.0,0.08491561]
[1743946363640,0.38213311,82652.0,82651.0,0.00018151]
[1743946363941,0.38313311,82652.0,82651.0,0.00948224]
[1743946364749,0.38313311,82652.0,82651.0,0.09421634]
[1743946366549,0.23440001,82652.0,82651.0,0.09421634]
[1743946366947,0.31913311,82652.0,82651.0,0.09421634]
[1743946367150,0.31913311,82652.0,82651.0,1.59421634]
[1743946367339,0.3178931,82652.0,82651.0,1.59421634]
[1743946370150,0.3191731,82652.0,82651.0,1.59421634]
[1743946371350,0.3191731,82652.0,82651.0,0.00948224]
[1743946371544,0.4691731,82652.0,82651.0,0.00948224]
[1743946371744,0.0847454,82640.0,82638.0,0.3608]
[1743946372048,0.0847464,82639.0,82638.0,0.3608]
[1743946372351,0.3794464,82639.0,82638.0,0.3608]
[1743946373147,0.3794464,82639.0,82638.0,0.36978412]
[1743946373347,0.6307664,82639.0,82638.0,0.36978412]
[1743946374258,0.3807664,82639.0,82638.0,0.36978412]
[1743946374448,0.3807664,82639.0,82638.0,0.37178412]
[1743946374650,0.6407664,82639.0,82638.0,0.37178412]
[1743946374848,0.6407664,82639.0,82638.0,0.37378412]
[1743946375252,0.0423757,82634.0,82630.0,0.00018151]
[1743946375452,0.0847618,82624.0,82623.0,0.0333]
[1743946375653,0.3460818,82624.0,82623.0,0.0333]
[1743946376159,0.4108818,82624.0,82623.0,0.0333]
[1743946376651,0.6608818,82624.0,82623.0,0.0333]
[1743946376853,0.0847638,82622.0,82617.0,8e-05]
[1743946377059,0.0847679,82618.0,82617.0,8e-05]
[1743946377256,0.3260879,82618.0,82617.0,0.03338]
[1743946377459,0.3260879,82618.0,82617.0,1.53338]
[1743946377970,0.3260879,82618.0,82617.0,0.0425748]
[1743946377971,0.3590879,82618.0,82617.0,0.0425748]
[1743946378360,0.3590879,82618.0,82617.0,0.0424948]
[1743946378557,0.0847772,82609.0,82608.0,8e-05]
[1743946378859,0.0847823,82604.0,82603.0,0.0331]
[1743946379060,0.3247823,82604.0,82603.0,0.0331]
[1743946379656,0.3247823,82604.0,82603.0,0.0420196]
[1743946380058,0.5847823,82604.0,82603.0,0.0420196]
[1743946380257,0.3260623,82604.0,82603.0,0.0420196]
[1743946380766,0.3260623,82604.0,82603.0,0.1268029]
[1743946380956,0.3260623,82604.0,82603.0,0.1308029]
[1743946381457,0.24128,82604.0,82603.0,0.1308029]
[1743946381660,0.00128,82604.0,82603.0,0.1658029]
[1743946381868,0.10784807,82608.0,82607.0,0.0847792]
[1743946382767,0.10784807,82608.0,82607.0,0.4455792]
[1743946382962,0.0311,82626.0,82619.0,0.0423832]
[1743946383167,0.3447618,82626.0,82623.0,0.0423809]
[1743946383460,0.3023802,82626.0,82625.0,0.0847607]
[1743946383666,0.0423802,82626.0,82625.0,0.0847607]
[1743946383867,0.0423802,82626.0,82625.0,0.1494607]
[1743946384072,0.2723802,82626.0,82625.0,0.1494607]
[1743946384369,0.2733802,82626.0,82625.0,0.1494607]
[1743946384768,0.5233802,82626.0,82625.0,0.0317]
[1743946384965,0.2733802,82626.0,82625.0,0.0317]
[1743946385269,0.5342202,82626.0,82625.0,0.0317]
[1743946385467,0.5958202,82626.0,82625.0,0.03234]
[1743946385666,0.5958202,82626.0,82625.0,0.03334]
[1743946385667,0.3358202,82626.0,82625.0,0.03334]
[1743946385867,0.3050202,82626.0,82625.0,0.1181007]
[1743946386168,0.2742202,82626.0,82625.0,0.1181007]
[1743946386462,0.2742202,82626.0,82625.0,0.13543299]
[1743946386671,0.2732202,82626.0,82625.0,0.16813299]
[1743946387167,0.2732202,82626.0,82625.0,0.16713299]
[1743946387858,0.2732202,82626.0,82625.0,0.16813299]
[1743946388054,0.23084,82626.0,82625.0,0.16813299]
[1743946388254,0.23084,82626.0,82625.0,0.52893299]
[1743946388466,0.27084,82626.0,82625.0,0.56063299]
[1743946388661,0.00018151,82634.0,82627.0,0.0423791]
[1743946388958,0.00018151,82634.0,82633.0,0.0847525]
[1743946389259,0.00018151,82634.0,82633.0,0.0853925]
[1743946389565,0.00018151,82634.0,82633.0,0.10272479]
[1743946389761,0.00018151,82634.0,82633.0,0.16702479]
[1743946389956,0.3608,82641.0,82640.0,0.0847454]
[1743946390166,0.64144,82641.0,82640.0,0.0853854]
[1743946390466,0.7261843,82641.0,82640.0,0.0853854]
[1743946391064,0.7301843,82641.0,82640.0,0.16651769]
[1743946391666,0.7301843,82641.0,82640.0,0.16751769]
[1743946391867,0.3653843,82641.0,82640.0,0.16851769]
[1743946394077,0.6353843,82641.0,82640.0,0.01997229]
[1743946394373,0.6353843,82641.0,82640.0,0.01933229]
[1743946394675,0.6655843,82641.0,82640.0,0.01933229]
[1743946395174,0.6655843,82641.0,82640.0,0.02001229]
[1743946395472,0.6655843,82641.0,82640.0,0.01933229]
[1743946395673,0.7203843,82641.0,82640.0,0.01833229]
[1743946397075,1.0831843,82641.0,82640.0,0.01733229]
[1743946397575,1.0821843,82641.0,82640.0,0.01733229]
[1743946397773,0.99544,82641.0,82630.0,8e-05]
[1743946397968,0.0847679,82618.0,82617.0,0.00018151]
[1743946398165,0.3655679,82618.0,82617.0,0.08495051]
[1743946398375,0.3656479,82618.0,82617.0,0.08563051]
[1743946398966,0.3656479,82618.0,82617.0,0.11853051]
[1743946399976,0.3656479,82618.0,82617.0,0.03376151]
[1743946400174,0.3656479,82618.0,82617.0,0.03476151]
[1743946400375,0.9564479,82618.0,82617.0,0.00186151]
[1743946400674,0.1271629,82611.0,82610.0,0.0326]
[1743946400875,0.6981629,82611.0,82610.0,0.0326]
[1743946401379,0.0847823,82604.0,82603.0,0.0089196]
[1743946401575,0.3347823,82604.0,82603.0,1.5]
[1743946402079,0.3347823,82604.0,82603.0,0.065]
[1743946402269,0.3970823,82604.0,82603.0,0.065]
[1743946402471,0.38799606,82604.0,82603.0,0.065]
[1743946403474,0.32569606,82604.0,82603.0,0.065]
[1743946403876,0.31963861,82604.0,82603.0,0.07422061]
[1743946404082,0.31963861,82604.0,82603.0,0.07822061]
[1743946404276,0.31963861,82604.0,82603.0,0.08322061]
[1743946405286,0.31963861,82604.0,82603.0,0.08386061]
[1743946406183,0.59963861,82604.0,82603.0,0.08386061]
[1743946406385,0.60071861,82604.0,82603.0,0.08386061]
[1743946406582,0.32071861,82604.0,82603.0,0.08386061]
[1743946406781,0.35201861,82604.0,82603.0,0.08386061]
[1743946407185,0.35093861,82604.0,82603.0,0.08386061]
[1743946407485,0.35093861,82604.0,82603.0,0.09984586]
[1743946408285,0.35093861,82604.0,82603.0,0.08322061]
[1743946409382,0.60093861,82604.0,82603.0,0.08322061]
[1743946409586,0.35093861,82604.0,82603.0,0.08322061]
[1743946409791,0.58093861,82604.0,82603.0,0.08322061]
[1743946410086,0.35093861,82604.0,82603.0,0.08322061]
[1743946410283,0.57963861,82604.0,82603.0,0.08322061]
[1743946410474,0.63253861,82604.0,82603.0,0.08322061]
[1743946410680,0.35253861,82604.0,82603.0,0.08322061]
[1743946410881,0.35253861,82604.0,82603.0,0.10071649]
[1743946411087,0.31963861,82604.0,82603.0,0.18549979]
[1743946412288,0.25,82604.0,82603.0,0.18617979]
[1743946412499,0.3347823,82604.0,82603.0,0.18617979]
[1743946412798,0.25,82604.0,82603.0,0.18617979]
[1743946413005,0.0423882,82610.0,82609.0,0.0847761]
[1743946413190,0.3571643,82610.0,82609.0,0.0858561]
[1743946413396,0.5981643,82610.0,82609.0,0.03555561]
[1743946413597,0.6287643,82610.0,82609.0,0.03447561]
[1743946413901,0.6587643,82610.0,82609.0,0.03447561]
[1743946414103,0.6287643,82610.0,82609.0,0.03447561]
[1743946414304,0.3887643,82610.0,82609.0,0.04147561]
[1743946414596,0.3887643,82610.0,82609.0,0.04211561]
[1743946414996,0.6787643,82610.0,82609.0,0.04211561]
[1743946415305,0.3887643,82610.0,82609.0,0.04211561]
[1743946416005,0.3887643,82610.0,82609.0,0.04196578]
[1743946416296,0.3887643,82610.0,82609.0,0.04196572]
[1743946419607,0.3887643,82610.0,82609.0,0.04132572]